Workbook

Sheet Лист2
B3: полотно | E3: высота мм | G3: ширина мм | H3: толщина проема мм | I3: площадь м2 | K3: Вид отделки | M3: Стоимость | N3: тонировка шпона | O3: стоимость | P3: Вид пластика | R3: Тип коробки | S3: стоимость | T3: Тип наличников | W3: И Т О Г О
B4: 3 | E4: 2100 | F4: 1 | G4: 900 | H4: 90 | I4: =E4*G4/1000000 -> 1.89 | K4: 2 | M4: =I4*INDEX(полотно!$B$3:$F$8,K4,B4)+IF(LEFT(INDEX(полотно!$B$1:$F$1,B4),3)="(ПП",(2*E4+G4)*полотно!B21/1000,0)+CHOOSE(K4,0,0,полотно!B18,полотно!C18,0,0) -> 0 | N4: 1 | O4: =INDIRECT("полотно!B" & N4+11) -> 630 | Q4: 6 | R4: 4 | S4: =INDIRECT("Лист4!C" & R4+307) -> 2479.11 | T4: 1 | V4: =INDIRECT("'Деревянные коробки'!B" & T4+40) -> 1632 | W4: =Q4+O4+M4+J4 -> 636
P10: =INDEX(Лист4!$B$335:$E$340,R4,S4)*IF(AND(ISNUMBER(FIND("V",INDEX(Лист4!$A$335:$A$340,R4))),E4*2+G4>5800),1.5,1) -> 

Sheet полотно
B1: Сотовое полотно | C1: трубчатое полотно | D1: полнотелое полотно | E1: (ПП IE 30) | F1: (ПП IE 60)
A2: Вид отделки | B2: цена руб/м2 | C2: цена руб/м2 | D2: цена руб/м2 | E2: цена руб/м2 | F2: цена руб/м2
A3: шпон эконом
A4: шпон натурал
A5: Пластик белый
A6: Пластик под дерево
A7: эмаль
A11: тонировка шпона | B11: цена руб/м2
A12: ДА | B12: 630
A13: НЕТ | B13: 0
A16: Доп опция пластика
A17: вид отделки | B17: белый | C17: дерево
A18: цена руб/лист
A21: Фрезеровка
A25: сотовое
A26: трубчатое
A27: полнотелое
A28: (ПП IE 30)
A29: (ПП IE 60)

Sheet Алюм коробки Фрист
A1: Под глухое полотно RAL 9016 | H1: RAL 9016 | L1: Анодировка | P1: неокрашено
B2: 700 | C2: 900 | D2: 1200 | E2: 1500 | F2: 1800 | H2: высота | I2: ширина | J2: стоимость | L2: высота | M2: ширина | N2: стоимость | P2: высота | Q2: ширина | R2: стоимость
A3: 2100 | B3: 2860 | C3: 2860 | D3: 2940 | E3: 2960 | F3: 2975 | H3: =Лист2!E4 -> 2100 | I3: =Лист2!G4 -> 900 | J3: =INDEX(B3:F6,MIN(4,SUMPRODUCT(--(A3:A6<H3))+1),MIN(5,SUMPRODUCT(--(B2:F2<I3))+1)) -> 2860 | L3: =H3 -> 2100 | M3: 900 | N3: =INDEX(B10:F13,MIN(4,SUMPRODUCT(--(A10:A13<L3))+1),MIN(5,SUMPRODUCT(--(B9:F9<M3))+1)) -> 3060 | P3: =L3 -> 2100 | Q3: 900 | R3: =INDEX(B17:F20,MIN(4,SUMPRODUCT(--(A17:A20<P3))+1),MIN(5,SUMPRODUCT(--(B16:F16<Q3))+1)) -> 2730
A4: 2300 | B4: 2950 | C4: 2950 | D4: 2965 | E4: 2980 | F4: 2995 | H4: =Лист2!#REF! ->  | I4: =Лист2!#REF! ->  | J4: =INDEX(B3:F6,MIN(4,SUMPRODUCT(--(A3:A6<H4))+1),MIN(5,SUMPRODUCT(--(B2:F2<I4))+1)) ->  | L4: =H4 ->  | N4: =INDEX(B10:F13,MIN(4,SUMPRODUCT(--(A10:A13<L4))+1),MIN(5,SUMPRODUCT(--(B9:F9<M4))+1)) ->  | R4: =INDEX(B17:F20,MIN(4,SUMPRODUCT(--(A17:A20<P4))+1),MIN(5,SUMPRODUCT(--(B16:F16<Q4))+1)) -> 
A5: 2700 | B5: 2980 | C5: 2990 | D5: 3010 | E5: 3025 | F5: 3035 | H5: =Лист2!#REF! ->  | I5: =Лист2!#REF! ->  | J5: =INDEX(B3:F6,MIN(4,SUMPRODUCT(--(A3:A6<H5))+1),MIN(5,SUMPRODUCT(--(B2:F2<I5))+1)) ->  | N5: =INDEX(B10:F13,MIN(4,SUMPRODUCT(--(A10:A13<L5))+1),MIN(5,SUMPRODUCT(--(B9:F9<M5))+1)) ->  | R5: =INDEX(B17:F20,MIN(4,SUMPRODUCT(--(A17:A20<P5))+1),MIN(5,SUMPRODUCT(--(B16:F16<Q5))+1)) -> 
A6: 3000 | B6: 3010 | C6: 3025 | D6: 3035 | E6: 3055 | F6: 3065 | H6: =Лист2!#REF! ->  | I6: =Лист2!#REF! ->  | J6: =INDEX(B3:F6,MIN(4,SUMPRODUCT(--(A3:A6<H6))+1),MIN(5,SUMPRODUCT(--(B2:F2<I6))+1)) ->  | N6: =INDEX(B10:F13,MIN(4,SUMPRODUCT(--(A10:A13<L6))+1),MIN(5,SUMPRODUCT(--(B9:F9<M6))+1)) ->  | R6: =INDEX(B17:F20,MIN(4,SUMPRODUCT(--(A17:A20<P6))+1),MIN(5,SUMPRODUCT(--(B16:F16<Q6))+1)) -> 
H7: =Лист2!#REF! ->  | I7: =Лист2!#REF! ->  | J7: =INDEX(B3:F6,MIN(4,SUMPRODUCT(--(A3:A6<H7))+1),MIN(5,SUMPRODUCT(--(B2:F2<I7))+1)) ->  | N7: =INDEX(B10:F13,MIN(4,SUMPRODUCT(--(A10:A13<L7))+1),MIN(5,SUMPRODUCT(--(B9:F9<M7))+1)) ->  | R7: =INDEX(B17:F20,MIN(4,SUMPRODUCT(--(A17:A20<P7))+1),MIN(5,SUMPRODUCT(--(B16:F16<Q7))+1)) -> 
A8: Под глухое полотно анодировка
B9: 700 | C9: 900 | D9: 1200 | E9: 1500 | F9: 1800
A10: 2100 | B10: 3060 | C10: 3060 | D10: 3075 | E10: 3095 | F10: 3105
A11: 2300 | B11: 3070 | C11: 3080 | D11: 3100 | E11: 3115 | F11: 3130
A12: 2700 | B12: 3110 | C12: 3125 | D12: 3140 | E12: 3160 | F12: 3180
A13: 3000 | B13: 3145 | C13: 3160 | D13: 3175 | E13: 3190 | F13: 3210
A15: Под глухое полотно неокрашено
B16: 700 | C16: 900 | D16: 1200 | E16: 1500 | F16: 1800
A17: 2100 | B17: 2730 | C17: 2730 | D17: 2740 | E17: 2760 | F17: 2770
A18: 2300 | B18: 2740 | C18: 2750 | D18: 2765 | E18: 2775 | F18: 2790
A19: 2700 | B19: 2775 | C19: 2785 | D19: 2800 | E19: 2820 | F19: 2830
A20: 3000 | B20: 2810 | C20: 2820 | D20: 2830 | E20: 2845 | F20: 2860
A22: Под цельностеклянное полотно Ral 9016
B23: 700 | C23: 900 | D23: 1200 | E23: 1500 | F23: 1800
A24: 2100 | B24: 3570 | C24: 3570 | D24: 3935 | E24: 3955 | F24: 3975
A25: 2300 | B25: 3570 | C25: 3945 | D25: 3960 | E25: 3980 | F25: 4005
A26: 2700 | B26: 3980 | C26: 3995 | D26: 4015 | E26: 4035 | F26: 4055
A27: 3000 | B27: 4020 | C27: 4035 | D27: 4055 | E27: 4070 | F27: 4095
A29: Под цельностеклянное полотно анодировка
B30: 700 | C30: 900 | D30: 1200 | E30: 1500 | F30: 1800
A31: 2100 | B31: 3740 | C31: 3740 | D31: 4125 | E31: 4140 | F31: 4165
A32: 2300 | B32: 3740 | C32: 4130 | D32: 4150 | E32: 4170 | F32: 4195
A33: 2700 | B33: 4170 | C33: 4185 | D33: 4205 | E33: 4230 | F33: 4250
A34: 3000 | B34: 4215 | C34: 4230 | D34: 4250 | E34: 4270 | F34: 4290
A36: Под цельностеклянное полотно неокрашено
B37: 700 | C37: 900 | D37: 1200 | E37: 1500 | F37: 1800
A38: 2100
A39: 2300
A40: 2700
A41: 3000

Sheet Деревянные коробки
A1: коробка деревянная стандартная
A2: цена за п/м руб | B2: стоимость
A3: 430 | B3: =(Лист2!E4*2+Лист2!G4)*'Деревянные коробки'!A3/1000 -> 2193
A4: 430 | B4: =(Лист2!#REF!*2+Лист2!#REF!)*'Деревянные коробки'!A4/1000 -> 
A5: 430 | B5: =(Лист2!#REF!*2+Лист2!#REF!)*'Деревянные коробки'!A5/1000 -> 
A6: 430 | B6: =(Лист2!#REF!*2+Лист2!#REF!)*'Деревянные коробки'!A6/1000 -> 
A7: 430 | B7: =(Лист2!#REF!*2+Лист2!#REF!)*'Деревянные коробки'!A7/1000 -> 
A9: коробка деревянная усиленная
A10: 570 | B10: =(Лист2!E4*2+Лист2!G4)*'Деревянные коробки'!A10/1000 -> 2907
A11: 570 | B11: =(Лист2!#REF!*2+Лист2!#REF!)*'Деревянные коробки'!A11/1000 -> 
A12: 570 | B12: =(Лист2!#REF!*2+Лист2!#REF!)*'Деревянные коробки'!A12/1000 -> 
A13: 570 | B13: =(Лист2!#REF!*2+Лист2!#REF!)*'Деревянные коробки'!A13/1000 -> 
A14: 570 | B14: =(Лист2!#REF!*2+Лист2!#REF!)*'Деревянные коробки'!A14/1000 -> 
A16: наличники
A17: наименование | B17: цена за п/м руб | C17: стоимость
A18: плоский | B18: 320 | C18: =(Лист2!E4*2+Лист2!G4)*'Деревянные коробки'!B18/1000 -> 1632
A19: плоский | B19: 320 | C19: =(Лист2!#REF!*2+Лист2!#REF!)*'Деревянные коробки'!B19/1000 -> 
A20: плоский | B20: 320 | C20: =(Лист2!#REF!*2+Лист2!#REF!)*'Деревянные коробки'!B20/1000 -> 
A21: плоский | B21: 320 | C21: =(Лист2!#REF!*2+Лист2!#REF!)*'Деревянные коробки'!B21/1000 -> 
A22: плоский | B22: 320 | C22: =(Лист2!#REF!*2+Лист2!#REF!)*'Деревянные коробки'!B22/1000 -> 
A23: телескопический | B23: 380 | C23: =(Лист2!E4*2+Лист2!G4)*'Деревянные коробки'!B23/1000 -> 1938
A24: телескопический | B24: 380 | C24: =(Лист2!#REF!*2+Лист2!#REF!)*'Деревянные коробки'!B24/1000 -> 
A25: телескопический | B25: 380 | C25: =(Лист2!#REF!*2+Лист2!#REF!)*'Деревянные коробки'!B25/1000 -> 
A26: телескопический | B26: 380 | C26: =(Лист2!#REF!*2+Лист2!#REF!)*'Деревянные коробки'!B26/1000 -> 
A27: телескопический | B27: 380 | C27: =(Лист2!#REF!*2+Лист2!#REF!)*'Деревянные коробки'!B27/1000 -> 
A29: доборы
B30: стоимость | C30: цена
A31: 1 | B31: =(Лист2!E4*2+Лист2!G4)/1000*(Лист2!H4-100)/1000*C31+(Лист2!E4*2+Лист2!G4)/1000*B37 -> 286.11 | C31: 2890
A32: 2 | B32: =(Лист2!#REF!*2+Лист2!#REF!)/1000*(Лист2!#REF!-100)/1000*C32+(Лист2!#REF!*2+Лист2!#REF!)/1000*B37 ->  | C32: 2890
A33: 3 | B33: =(Лист2!#REF!*2+Лист2!#REF!)/1000*(Лист2!#REF!-90)/1000*C33+(Лист2!#REF!*2+Лист2!#REF!)/1000*B37 ->  | C33: 2890
A34: 4 | B34: =(Лист2!#REF!*2+Лист2!#REF!)/1000*(Лист2!#REF!-90)/1000*C34+(Лист2!#REF!*2+Лист2!#REF!)/1000*B37 ->  | C34: 2890
A35: 5 | B35: =(Лист2!#REF!*2+Лист2!#REF!)/1000*(Лист2!#REF!-90)/1000*C35+(Лист2!#REF!*2+Лист2!#REF!)/1000*B37 ->  | C35: 2890
A37: Фрезеровка | B37: 85
B39: Сотовое полотно | C39: трубчатое полотно | D39: полнотелое полотно | E39: (ПП IE 30) | F39: (ПП IE 60)
B40: цена руб/м2 | C40: цена руб/м2 | D40: цена руб/м2 | E40: цена руб/м2 | F40: цена руб/м2
A41: плоский | B41: =C18 -> 1632 | C41: =C19 ->  | D41: =C20 ->  | E41: =C21 ->  | F41: =C22 -> 
A42: телескопический | B42: =C23 -> 1938 | C42: =C24 ->  | D42: =C25 ->  | E42: =C26 ->  | F42: =C27 -> 

Sheet Лист4
A1: Тип | B1: Высота | C1: Ширина | D1: Толщина | E1: Цена Коробки | F1: Количество коробок, шт | G1: Сумма | H1: Добор 50мм, шт | I1: Добор 80мм, шт | J1: Цена добор 50мм | K1: Цена добор 80мм | L1: Сумма | M1: ИТОГО
A2: =Лист2!R4 -> 4 | B2: =Лист2!E4 -> 2100 | C2: =Лист2!G4 -> 900 | D2: =Лист2!H4 -> 90 | E2: =B15+B28 -> 0 | F2: 1 | G2: =F2*E2 -> 0 | H2: =B59 -> 0 | I2: =B58 -> 0 | J2: =B37 -> 0 | K2: =B46 -> 0 | L2: =H2*J2+I2*K2 -> 0 | M2: =G2+L2 -> 0
E5: Размер по проему: (высота х ширина) | F5: Ед.изм. | G5: Цена/руб.
A6: К3 | B6: 2150 | C6: 1000 | D6: =B6+C6 -> 3150 | E6: до 2150х1000 | F6: компл. | G6: 4830 | H6: =B2 -> 2100 | I6: =C2 -> 900 | J6: =IF(H6<=B6,1,0) -> 1 | K6: =IF(I6<=1000,1,0) -> 1 | L6: =IF(AND(J6=1,K6=1),G6,0) -> 4830
A7: К3 | B7: 2150 | C7: 2000 | D7: 4150 | E7: до 2150х2000 | F7: компл. | G7: 6040 | H7: =H6 -> 2100 | I7: 900 | J7: =IF(H7<=B7,1,0) -> 1 | K7: =IF(AND(1000<I7,I7<=2000),1,0) -> 0 | L7: 0
A8: К3 | B8: 2500 | C8: 1000 | D8: 3500 | E8: до 2500х1000 | F8: компл. | G8: 6040 | H8: 2100 | I8: 900 | J8: =IF(AND(2150<H8,H8<=2500),1,0) -> 0 | K8: =IF(I8<=1000,1,0) -> 1 | L8: 0
A9: К3 | B9: 2500 | C9: 2000 | D9: 4500 | E9: до 2500х2000 | F9: компл. | G9: 7245 | H9: 2100 | I9: 900 | J9: =IF(AND(2150<H9,H9<=2500),1,0) -> 0 | K9: =IF(AND(1000<I9,I9<=2000),1,0) -> 0 | L9: 0
A10: К3 | B10: 2800 | C10: 1000 | D10: 3800 | E10: до 2800х1000 | F10: компл. | G10: 7245 | H10: 2100 | I10: 900 | J10: =IF(AND(2500<H10,H10<=2800),1,0) -> 0 | K10: =IF(I10<=1000,1,0) -> 1 | L10: 0
A11: К3 | B11: 2800 | C11: 2000 | D11: 4800 | E11: до 2800х2000 | F11: компл. | G11: 8450 | H11: 2100 | I11: 900 | J11: =IF(AND(2500<H11,H11<=2800),1,G12) -> 0 | K11: =IF(AND(1000<I11,I11<=2000),1,0) -> 0 | L11: 0
J12: =IF(H11>B11,1,0) -> 0 | K12: =IF(I10<=1000,1,0) -> 1 | L12: =IF(AND(J12=1,K12=1),G10,0) -> 0
J13: =IF(H11>B11,1,0) -> 0 | K13: =IF(AND(1000<I11,I11<=2000),1,0) -> 0 | L13: =IF(AND(J13=1,K13=1),G11,0) -> 0
A15: 1 | B15: =IF(A2=A15,L15,0) -> 0 | L15: =SUM(L6:L14) -> 4830
E18: Размер по проему: (высота х ширина) | F18: Ед.изм. | G18: Цена/руб.
A19: К4 | B19: 2150 | C19: 1000 | D19: =B19+C19 -> 3150 | E19: до 2150х1000 | F19: компл. | G19: 4725 | H19: =B2 -> 2100 | I19: =C2 -> 900 | J19: =IF(H19<=B19,1,0) -> 1 | K19: =IF(I19<=1000,1,0) -> 1 | L19: =IF(AND(J19=1,K19=1),G19,0) -> 4725
A20: К4 | B20: 2150 | C20: 2000 | D20: 4150 | E20: до 2150х2000 | F20: компл. | G20: 5910 | H20: =H19 -> 2100 | I20: 900 | J20: =IF(H20<=B20,1,0) -> 1 | K20: =IF(AND(1000<I20,I20<=2000),1,0) -> 0 | L20: 0
A21: К4 | B21: 2500 | C21: 1000 | D21: 3500 | E21: до 2500х1000 | F21: компл. | G21: 5910 | H21: 2100 | I21: 900 | J21: =IF(AND(2150<H21,H21<=2500),1,0) -> 0 | K21: =IF(I21<=1000,1,0) -> 1 | L21: 0
A22: К4 | B22: 2500 | C22: 2000 | D22: 4500 | E22: до 2500х2000 | F22: компл. | G22: 7090 | H22: 2100 | I22: 900 | J22: =IF(AND(2150<H22,H22<=2500),1,0) -> 0 | K22: =IF(AND(1000<I22,I22<=2000),1,0) -> 0 | L22: 0
A23: К4 | B23: 2800 | C23: 1000 | D23: 3800 | E23: до 2800х1000 | F23: компл. | G23: 7090 | H23: 2100 | I23: 900 | J23: =IF(AND(2500<H23,H23<=2800),1,0) -> 0 | K23: =IF(I23<=1000,1,0) -> 1 | L23: 0
A24: К4 | B24: 2800 | C24: 2000 | D24: 4800 | E24: до 2800х2000 | F24: компл. | G24: 8265 | H24: 2100 | I24: 900 | J24: =IF(AND(2500<H24,H24<=2800),1,G25) -> 0 | K24: =IF(AND(1000<I24,I24<=2000),1,0) -> 0 | L24: 0
J25: =IF(H24>B24,1,0) -> 0 | K25: =IF(I23<=1000,1,0) -> 1 | L25: =IF(AND(J25=1,K25=1),G23,0) -> 0
J26: =IF(H24>B24,1,0) -> 0 | K26: =IF(AND(1000<I24,I24<=2000),1,0) -> 0 | L26: =IF(AND(J26=1,K26=1),G24,0) -> 0
A28: 2 | B28: =IF(A2=A28,L28,0) -> 0 | L28: =SUM(L19:L27) -> 4725
A30: К3 | B30: 2500 | C30: 1000 | D30: 50 | E30: до 2500х1000 | F30: компл. | G30: 1500 | H30: =B2 -> 2100 | I30: =C2 -> 900 | J30: =IF(H30<=B30,1,0) -> 1 | K30: =IF(I30<=1000,1,0) -> 1 | L30: =IF(AND(J30=1,K30=1),G30,0) -> 1500
A31: К3 | B31: 2500 | C31: 2000 | D31: 50 | E31: до 2500х2000 | F31: компл. | G31: 1790 | H31: =H30 -> 2100 | I31: 900 | J31: =IF(H31<=B31,1,0) -> 1 | K31: =IF(AND(1000<I31,I31<=2000),1,0) -> 0 | L31: =IF(AND(J31=1,K31=1),G31,0) -> 0
A32: К3 | B32: 2800 | C32: 1000 | D32: 50 | E32: до 2800х1000 | F32: компл. | G32: 1790 | H32: 2100 | I32: 900 | J32: =IF(AND(2500<H32,H32<=2800),1,0) -> 0 | K32: =IF(I32<=1000,1,0) -> 1 | L32: =IF(AND(J32=1,K32=1),G32,0) -> 0
A33: К3 | B33: 2800 | C33: 2000 | D33: 50 | E33: до 2800х2000 | F33: компл. | G33: 2140 | H33: 2100 | I33: 900 | J33: =IF(AND(2500<H33,H33<=2800),1,0) -> 0 | K33: =IF(AND(1000<I33,I33<=2000),1,0) -> 0 | L33: =IF(AND(J33=1,K33=1),G33,0) -> 0
J34: =IF(H33>B33,1,0) -> 0 | K34: =IF(I32<=1000,1,0) -> 1 | L34: =IF(AND(J34=1,K34=1),G33,0) -> 0
J35: =IF(H33>B33,1,0) -> 0 | K35: =IF(AND(1000<I33,I33<=2000),1,0) -> 0 | L35: =IF(AND(J35=1,K35=1),G33,0) -> 0
A37: 1 | B37: =IF(A2=A37,L37,0) -> 0 | L37: =SUM(L30:L36) -> 1500
A39: К3 | B39: 2500 | C39: 1000 | D39: 80 | E39: до 2500х1000 | F39: компл. | G39: 1790 | H39: =B2 -> 2100 | I39: =C2 -> 900 | J39: =IF(H39<=B39,1,0) -> 1 | K39: =IF(I39<=1000,1,0) -> 1 | L39: =IF(AND(J39=1,K39=1),G39,0) -> 1790
A40: К3 | B40: 2500 | C40: 2000 | D40: 80 | E40: до 2500х2000 | F40: компл. | G40: 2140 | H40: =H39 -> 2100 | I40: 900 | J40: =IF(H40<=B40,1,0) -> 1 | K40: =IF(AND(1000<I40,I40<=2000),1,0) -> 0 | L40: =IF(AND(J40=1,K40=1),G40,0) -> 0
A41: К3 | B41: 2800 | C41: 1000 | D41: 80 | E41: до 2800х1000 | F41: компл. | G41: 2100 | H41: 2100 | I41: 900 | J41: =IF(AND(2500<H41,H41<=2800),1,0) -> 0 | K41: =IF(I41<=1000,1,0) -> 1 | L41: =IF(AND(J41=1,K41=1),G41,0) -> 0
A42: К3 | B42: 2800 | C42: 2000 | D42: 80 | E42: до 2800х2000 | F42: компл. | G42: 2520 | H42: 2100 | I42: 900 | J42: =IF(AND(2500<H42,H42<=2800),1,0) -> 0 | K42: =IF(AND(1000<I42,I42<=2000),1,0) -> 0 | L42: =IF(AND(J42=1,K42=1),G42,0) -> 0
A43: К3 | J43: =IF(H42>B42,1,0) -> 0 | K43: =IF(I41<=1000,1,0) -> 1 | L43: =IF(AND(J43=1,K43=1),G42,0) -> 0
J44: =IF(H42>B42,1,0) -> 0 | K44: =IF(AND(1000<I42,I42<=2000),1,0) -> 0 | L44: =IF(AND(J44=1,K44=1),G42,0) -> 0
A46: 1 | B46: =IF(A2=A46,L46,0) -> 0 | L46: =SUM(L39:L45) -> 1790
A49: Толщина дверного проема | B49: =D2 -> 90
A50: добор 80 мм | B50: =INT((B49-120)/80) -> -1
A51: добор 50 мм | B51: 0
A52: Остаток | B52: =(B49-120)-B50*80 -> 50
A54: Необходимое количество
A55: добор 80 мм | B55: =IF(B52>50,B50+1,B50) -> -1
A56: добор 50 мм | B56: =IF(AND(1<B52,B52<=50),B51+1,B51) -> 1
A58: 1 | B58: =IF(A2=A58,L58,0) -> 0 | L58: =B55 -> -1
A59: 1 | B59: =IF(A2=A59,L59,0) -> 0 | L59: =B56 -> 1
A61: =Лист2!#REF! ->  | B61: =Лист2!#REF! ->  | C61: =Лист2!#REF! ->  | D61: =Лист2!#REF! ->  | E61: =B74+B87 ->  | F61: 1 | G61: =F61*E61 ->  | H61: =B118 ->  | I61: =B117 ->  | J61: =B96 ->  | K61: =B105 ->  | L61: =H61*J61+I61*K61 ->  | M61: =G61+L61 -> 
E64: Размер по проему: (высота х ширина) | F64: Ед.изм. | G64: Цена/руб.
A65: К3 | B65: 2150 | C65: 1000 | D65: =B65+C65 -> 3150 | E65: до 2150х1000 | F65: компл. | G65: 4830 | H65: =B61 ->  | I65: =C61 ->  | J65: =IF(H65<=B65,1,0) ->  | K65: =IF(I65<=1000,1,0) ->  | L65: =IF(AND(J65=1,K65=1),G65,0) -> 
A66: К3 | B66: 2150 | C66: 2000 | D66: 4150 | E66: до 2150х2000 | F66: компл. | G66: 6040 | H66: =H65 ->  | J66: =IF(H66<=B66,1,0) ->  | K66: =IF(AND(1000<I66,I66<=2000),1,0) -> 
A67: К3 | B67: 2500 | C67: 1000 | D67: 3500 | E67: до 2500х1000 | F67: компл. | G67: 6040 | J67: =IF(AND(2150<H67,H67<=2500),1,0) ->  | K67: =IF(I67<=1000,1,0) -> 
A68: К3 | B68: 2500 | C68: 2000 | D68: 4500 | E68: до 2500х2000 | F68: компл. | G68: 7245 | J68: =IF(AND(2150<H68,H68<=2500),1,0) ->  | K68: =IF(AND(1000<I68,I68<=2000),1,0) -> 
A69: К3 | B69: 2800 | C69: 1000 | D69: 3800 | E69: до 2800х1000 | F69: компл. | G69: 7245 | J69: =IF(AND(2500<H69,H69<=2800),1,0) ->  | K69: =IF(I69<=1000,1,0) -> 
A70: К3 | B70: 2800 | C70: 2000 | D70: 4800 | E70: до 2800х2000 | F70: компл. | G70: 8450 | J70: =IF(AND(2500<H70,H70<=2800),1,G71) ->  | K70: =IF(AND(1000<I70,I70<=2000),1,0) -> 
J71: =IF(H70>B70,1,0) ->  | K71: =IF(I69<=1000,1,0) ->  | L71: =IF(AND(J71=1,K71=1),G69,0) -> 
J72: =IF(H70>B70,1,0) ->  | K72: =IF(AND(1000<I70,I70<=2000),1,0) ->  | L72: =IF(AND(J72=1,K72=1),G70,0) -> 
A74: 1 | B74: =IF(A61=A74,L74,0) ->  | L74: =SUM(L65:L73) -> 
E77: Размер по проему: (высота х ширина) | F77: Ед.изм. | G77: Цена/руб.
A78: К4 | B78: 2150 | C78: 1000 | D78: =B78+C78 -> 3150 | E78: до 2150х1000 | F78: компл. | G78: 4725 | H78: =B61 ->  | I78: =C61 ->  | J78: =IF(H78<=B78,1,0) ->  | K78: =IF(I78<=1000,1,0) ->  | L78: =IF(AND(J78=1,K78=1),G78,0) -> 
A79: К4 | B79: 2150 | C79: 2000 | D79: 4150 | E79: до 2150х2000 | F79: компл. | G79: 5910 | H79: =H78 ->  | J79: =IF(H79<=B79,1,0) ->  | K79: =IF(AND(1000<I79,I79<=2000),1,0) -> 
A80: К4 | B80: 2500 | C80: 1000 | D80: 3500 | E80: до 2500х1000 | F80: компл. | G80: 5910 | J80: =IF(AND(2150<H80,H80<=2500),1,0) ->  | K80: =IF(I80<=1000,1,0) -> 
A81: К4 | B81: 2500 | C81: 2000 | D81: 4500 | E81: до 2500х2000 | F81: компл. | G81: 7090 | J81: =IF(AND(2150<H81,H81<=2500),1,0) ->  | K81: =IF(AND(1000<I81,I81<=2000),1,0) -> 
A82: К4 | B82: 2800 | C82: 1000 | D82: 3800 | E82: до 2800х1000 | F82: компл. | G82: 7090 | J82: =IF(AND(2500<H82,H82<=2800),1,0) ->  | K82: =IF(I82<=1000,1,0) -> 
A83: К4 | B83: 2800 | C83: 2000 | D83: 4800 | E83: до 2800х2000 | F83: компл. | G83: 8265 | J83: =IF(AND(2500<H83,H83<=2800),1,G84) ->  | K83: =IF(AND(1000<I83,I83<=2000),1,0) -> 
J84: =IF(H83>B83,1,0) ->  | K84: =IF(I82<=1000,1,0) ->  | L84: =IF(AND(J84=1,K84=1),G82,0) -> 
J85: =IF(H83>B83,1,0) ->  | K85: =IF(AND(1000<I83,I83<=2000),1,0) ->  | L85: =IF(AND(J85=1,K85=1),G83,0) -> 
A87: 2 | B87: =IF(A61=A87,L87,0) ->  | L87: =SUM(L78:L86) -> 
A89: К3 | B89: 2500 | C89: 1000 | D89: 50 | E89: до 2500х1000 | F89: компл. | G89: 1500 | H89: =B61 ->  | I89: =C61 ->  | J89: =IF(H89<=B89,1,0) ->  | K89: =IF(I89<=1000,1,0) ->  | L89: =IF(AND(J89=1,K89=1),G89,0) -> 
A90: К3 | B90: 2500 | C90: 2000 | D90: 50 | E90: до 2500х2000 | F90: компл. | G90: 1790 | H90: =H89 ->  | J90: =IF(H90<=B90,1,0) ->  | K90: =IF(AND(1000<I90,I90<=2000),1,0) ->  | L90: =IF(AND(J90=1,K90=1),G90,0) -> 
A91: К3 | B91: 2800 | C91: 1000 | D91: 50 | E91: до 2800х1000 | F91: компл. | G91: 1790 | J91: =IF(AND(2500<H91,H91<=2800),1,0) ->  | K91: =IF(I91<=1000,1,0) ->  | L91: =IF(AND(J91=1,K91=1),G91,0) -> 
A92: К3 | B92: 2800 | C92: 2000 | D92: 50 | E92: до 2800х2000 | F92: компл. | G92: 2140 | J92: =IF(AND(2500<H92,H92<=2800),1,0) ->  | K92: =IF(AND(1000<I92,I92<=2000),1,0) ->  | L92: =IF(AND(J92=1,K92=1),G92,0) -> 
J93: =IF(H92>B92,1,0) ->  | K93: =IF(I91<=1000,1,0) ->  | L93: =IF(AND(J93=1,K93=1),G92,0) -> 
J94: =IF(H92>B92,1,0) ->  | K94: =IF(AND(1000<I92,I92<=2000),1,0) ->  | L94: =IF(AND(J94=1,K94=1),G92,0) -> 
A96: 1 | B96: =IF(A61=A96,L96,0) ->  | L96: =SUM(L89:L95) -> 
A98: К3 | B98: 2500 | C98: 1000 | D98: 80 | E98: до 2500х1000 | F98: компл. | G98: 1790 | H98: =B61 ->  | I98: =C61 ->  | J98: =IF(H98<=B98,1,0) ->  | K98: =IF(I98<=1000,1,0) ->  | L98: =IF(AND(J98=1,K98=1),G98,0) -> 
A99: К3 | B99: 2500 | C99: 2000 | D99: 80 | E99: до 2500х2000 | F99: компл. | G99: 2140 | H99: =H98 ->  | J99: =IF(H99<=B99,1,0) ->  | K99: =IF(AND(1000<I99,I99<=2000),1,0) ->  | L99: =IF(AND(J99=1,K99=1),G99,0) -> 
A100: К3 | B100: 2800 | C100: 1000 | D100: 80 | E100: до 2800х1000 | F100: компл. | G100: 2100 | J100: =IF(AND(2500<H100,H100<=2800),1,0) ->  | K100: =IF(I100<=1000,1,0) ->  | L100: =IF(AND(J100=1,K100=1),G100,0) -> 
A101: К3 | B101: 2800 | C101: 2000 | D101: 80 | E101: до 2800х2000 | F101: компл. | G101: 2520 | J101: =IF(AND(2500<H101,H101<=2800),1,0) ->  | K101: =IF(AND(1000<I101,I101<=2000),1,0) ->  | L101: =IF(AND(J101=1,K101=1),G101,0) -> 
A102: К3 | J102: =IF(H101>B101,1,0) ->  | K102: =IF(I100<=1000,1,0) ->  | L102: =IF(AND(J102=1,K102=1),G101,0) -> 
J103: =IF(H101>B101,1,0) ->  | K103: =IF(AND(1000<I101,I101<=2000),1,0) ->  | L103: =IF(AND(J103=1,K103=1),G101,0) -> 
A105: 1 | B105: =IF(A61=A105,L105,0) ->  | L105: =SUM(L98:L104) -> 
A108: Толщина дверного проема | B108: =D61 -> 
A109: добор 80 мм | B109: =INT((B108-120)/80) -> 
A110: добор 50 мм | B110: 0
A111: Остаток | B111: =(B108-120)-B109*80 -> 
A113: Необходимое количество
A114: добор 80 мм | B114: =IF(B111>50,B109+1,B109) -> 
A115: добор 50 мм | B115: =IF(AND(1<B111,B111<=50),B110+1,B110) -> 
A117: 1 | B117: =IF(A61=A117,L117,0) ->  | L117: =B114 -> 
A118: 1 | B118: =IF(A61=A118,L118,0) ->  | L118: =B115 -> 
A120: =Лист2!#REF! ->  | B120: =Лист2!#REF! ->  | C120: =Лист2!#REF! ->  | D120: =Лист2!#REF! ->  | E120: =B133+B146 ->  | F120: 1 | G120: =F120*E120 ->  | H120: =B177 ->  | I120: =B176 ->  | J120: =B155 ->  | K120: =B164 ->  | L120: =H120*J120+I120*K120 ->  | M120: =G120+L120 -> 
E123: Размер по проему: (высота х ширина) | F123: Ед.изм. | G123: Цена/руб.
A124: К3 | B124: 2150 | C124: 1000 | D124: =B124+C124 -> 3150 | E124: до 2150х1000 | F124: компл. | G124: 4830 | H124: =B120 ->  | I124: =C120 ->  | J124: =IF(H124<=B124,1,0) ->  | K124: =IF(I124<=1000,1,0) ->  | L124: =IF(AND(J124=1,K124=1),G124,0) -> 
A125: К3 | B125: 2150 | C125: 2000 | D125: 4150 | E125: до 2150х2000 | F125: компл. | G125: 6040 | H125: =H124 ->  | J125: =IF(H125<=B125,1,0) ->  | K125: =IF(AND(1000<I125,I125<=2000),1,0) -> 
A126: К3 | B126: 2500 | C126: 1000 | D126: 3500 | E126: до 2500х1000 | F126: компл. | G126: 6040 | J126: =IF(AND(2150<H126,H126<=2500),1,0) ->  | K126: =IF(I126<=1000,1,0) -> 
A127: К3 | B127: 2500 | C127: 2000 | D127: 4500 | E127: до 2500х2000 | F127: компл. | G127: 7245 | J127: =IF(AND(2150<H127,H127<=2500),1,0) ->  | K127: =IF(AND(1000<I127,I127<=2000),1,0) -> 
A128: К3 | B128: 2800 | C128: 1000 | D128: 3800 | E128: до 2800х1000 | F128: компл. | G128: 7245 | J128: =IF(AND(2500<H128,H128<=2800),1,0) ->  | K128: =IF(I128<=1000,1,0) -> 
A129: К3 | B129: 2800 | C129: 2000 | D129: 4800 | E129: до 2800х2000 | F129: компл. | G129: 8450 | J129: =IF(AND(2500<H129,H129<=2800),1,G130) ->  | K129: =IF(AND(1000<I129,I129<=2000),1,0) -> 
J130: =IF(H129>B129,1,0) ->  | K130: =IF(I128<=1000,1,0) ->  | L130: =IF(AND(J130=1,K130=1),G128,0) -> 
J131: =IF(H129>B129,1,0) ->  | K131: =IF(AND(1000<I129,I129<=2000),1,0) ->  | L131: =IF(AND(J131=1,K131=1),G129,0) -> 
A133: 1 | B133: =IF(A120=A133,L133,0) ->  | L133: =SUM(L124:L132) -> 
E136: Размер по проему: (высота х ширина) | F136: Ед.изм. | G136: Цена/руб.
A137: К4 | B137: 2150 | C137: 1000 | D137: =B137+C137 -> 3150 | E137: до 2150х1000 | F137: компл. | G137: 4725 | H137: =B120 ->  | I137: =C120 ->  | J137: =IF(H137<=B137,1,0) ->  | K137: =IF(I137<=1000,1,0) ->  | L137: =IF(AND(J137=1,K137=1),G137,0) -> 
A138: К4 | B138: 2150 | C138: 2000 | D138: 4150 | E138: до 2150х2000 | F138: компл. | G138: 5910 | H138: =H137 ->  | J138: =IF(H138<=B138,1,0) ->  | K138: =IF(AND(1000<I138,I138<=2000),1,0) -> 
A139: К4 | B139: 2500 | C139: 1000 | D139: 3500 | E139: до 2500х1000 | F139: компл. | G139: 5910 | J139: =IF(AND(2150<H139,H139<=2500),1,0) ->  | K139: =IF(I139<=1000,1,0) -> 
A140: К4 | B140: 2500 | C140: 2000 | D140: 4500 | E140: до 2500х2000 | F140: компл. | G140: 7090 | J140: =IF(AND(2150<H140,H140<=2500),1,0) ->  | K140: =IF(AND(1000<I140,I140<=2000),1,0) -> 
A141: К4 | B141: 2800 | C141: 1000 | D141: 3800 | E141: до 2800х1000 | F141: компл. | G141: 7090 | J141: =IF(AND(2500<H141,H141<=2800),1,0) ->  | K141: =IF(I141<=1000,1,0) -> 
A142: К4 | B142: 2800 | C142: 2000 | D142: 4800 | E142: до 2800х2000 | F142: компл. | G142: 8265 | J142: =IF(AND(2500<H142,H142<=2800),1,G143) ->  | K142: =IF(AND(1000<I142,I142<=2000),1,0) -> 
J143: =IF(H142>B142,1,0) ->  | K143: =IF(I141<=1000,1,0) ->  | L143: =IF(AND(J143=1,K143=1),G141,0) -> 
J144: =IF(H142>B142,1,0) ->  | K144: =IF(AND(1000<I142,I142<=2000),1,0) ->  | L144: =IF(AND(J144=1,K144=1),G142,0) -> 
A146: 2 | B146: =IF(A120=A146,L146,0) ->  | L146: =SUM(L137:L145) -> 
A148: К3 | B148: 2500 | C148: 1000 | D148: 50 | E148: до 2500х1000 | F148: компл. | G148: 1500 | H148: =B120 ->  | I148: =C120 ->  | J148: =IF(H148<=B148,1,0) ->  | K148: =IF(I148<=1000,1,0) ->  | L148: =IF(AND(J148=1,K148=1),G148,0) -> 
A149: К3 | B149: 2500 | C149: 2000 | D149: 50 | E149: до 2500х2000 | F149: компл. | G149: 1790 | H149: =H148 ->  | J149: =IF(H149<=B149,1,0) ->  | K149: =IF(AND(1000<I149,I149<=2000),1,0) ->  | L149: =IF(AND(J149=1,K149=1),G149,0) -> 
A150: К3 | B150: 2800 | C150: 1000 | D150: 50 | E150: до 2800х1000 | F150: компл. | G150: 1790 | J150: =IF(AND(2500<H150,H150<=2800),1,0) ->  | K150: =IF(I150<=1000,1,0) ->  | L150: =IF(AND(J150=1,K150=1),G150,0) -> 
A151: К3 | B151: 2800 | C151: 2000 | D151: 50 | E151: до 2800х2000 | F151: компл. | G151: 2140 | J151: =IF(AND(2500<H151,H151<=2800),1,0) ->  | K151: =IF(AND(1000<I151,I151<=2000),1,0) ->  | L151: =IF(AND(J151=1,K151=1),G151,0) -> 
J152: =IF(H151>B151,1,0) ->  | K152: =IF(I150<=1000,1,0) ->  | L152: =IF(AND(J152=1,K152=1),G151,0) -> 
J153: =IF(H151>B151,1,0) ->  | K153: =IF(AND(1000<I151,I151<=2000),1,0) ->  | L153: =IF(AND(J153=1,K153=1),G151,0) -> 
A155: 1 | B155: =IF(A120=A155,L155,0) ->  | L155: =SUM(L148:L154) -> 
A157: К3 | B157: 2500 | C157: 1000 | D157: 80 | E157: до 2500х1000 | F157: компл. | G157: 1790 | H157: =B120 ->  | I157: =C120 ->  | J157: =IF(H157<=B157,1,0) ->  | K157: =IF(I157<=1000,1,0) ->  | L157: =IF(AND(J157=1,K157=1),G157,0) -> 
A158: К3 | B158: 2500 | C158: 2000 | D158: 80 | E158: до 2500х2000 | F158: компл. | G158: 2140 | H158: =H157 ->  | J158: =IF(H158<=B158,1,0) ->  | K158: =IF(AND(1000<I158,I158<=2000),1,0) ->  | L158: =IF(AND(J158=1,K158=1),G158,0) -> 
A159: К3 | B159: 2800 | C159: 1000 | D159: 80 | E159: до 2800х1000 | F159: компл. | G159: 2100 | J159: =IF(AND(2500<H159,H159<=2800),1,0) ->  | K159: =IF(I159<=1000,1,0) ->  | L159: =IF(AND(J159=1,K159=1),G159,0) -> 
A160: К3 | B160: 2800 | C160: 2000 | D160: 80 | E160: до 2800х2000 | F160: компл. | G160: 2520 | J160: =IF(AND(2500<H160,H160<=2800),1,0) ->  | K160: =IF(AND(1000<I160,I160<=2000),1,0) ->  | L160: =IF(AND(J160=1,K160=1),G160,0) -> 
A161: К3 | J161: =IF(H160>B160,1,0) ->  | K161: =IF(I159<=1000,1,0) ->  | L161: =IF(AND(J161=1,K161=1),G160,0) -> 
J162: =IF(H160>B160,1,0) ->  | K162: =IF(AND(1000<I160,I160<=2000),1,0) ->  | L162: =IF(AND(J162=1,K162=1),G160,0) -> 
A164: 1 | B164: =IF(A120=A164,L164,0) ->  | L164: =SUM(L157:L163) -> 
A167: Толщина дверного проема | B167: =D120 -> 
A168: добор 80 мм | B168: =INT((B167-120)/80) -> 
A169: добор 50 мм | B169: 0
A170: Остаток | B170: =(B167-120)-B168*80 -> 
A172: Необходимое количество
A173: добор 80 мм | B173: =IF(B170>50,B168+1,B168) -> 
A174: добор 50 мм | B174: =IF(AND(1<B170,B170<=50),B169+1,B169) -> 
A176: 1 | B176: =IF(A120=A176,L176,0) ->  | L176: =B173 -> 
A177: 1 | B177: =IF(A120=A177,L177,0) ->  | L177: =B174 -> 
A179: =Лист2!#REF! ->  | B179: =Лист2!#REF! ->  | C179: =Лист2!#REF! ->  | D179: =Лист2!#REF! ->  | E179: =B192+B205 ->  | F179: 1 | G179: =F179*E179 ->  | H179: =B236 ->  | I179: =B235 ->  | J179: =B214 ->  | K179: =B223 ->  | L179: =H179*J179+I179*K179 ->  | M179: =G179+L179 -> 
E182: Размер по проему: (высота х ширина) | F182: Ед.изм. | G182: Цена/руб.
A183: К3 | B183: 2150 | C183: 1000 | D183: =B183+C183 -> 3150 | E183: до 2150х1000 | F183: компл. | G183: 4830 | H183: =B179 ->  | I183: =C179 ->  | J183: =IF(H183<=B183,1,0) ->  | K183: =IF(I183<=1000,1,0) ->  | L183: =IF(AND(J183=1,K183=1),G183,0) -> 
A184: К3 | B184: 2150 | C184: 2000 | D184: 4150 | E184: до 2150х2000 | F184: компл. | G184: 6040 | H184: =H183 ->  | J184: =IF(H184<=B184,1,0) ->  | K184: =IF(AND(1000<I184,I184<=2000),1,0) -> 
A185: К3 | B185: 2500 | C185: 1000 | D185: 3500 | E185: до 2500х1000 | F185: компл. | G185: 6040 | J185: =IF(AND(2150<H185,H185<=2500),1,0) ->  | K185: =IF(I185<=1000,1,0) -> 
A186: К3 | B186: 2500 | C186: 2000 | D186: 4500 | E186: до 2500х2000 | F186: компл. | G186: 7245 | J186: =IF(AND(2150<H186,H186<=2500),1,0) ->  | K186: =IF(AND(1000<I186,I186<=2000),1,0) -> 
A187: К3 | B187: 2800 | C187: 1000 | D187: 3800 | E187: до 2800х1000 | F187: компл. | G187: 7245 | J187: =IF(AND(2500<H187,H187<=2800),1,0) ->  | K187: =IF(I187<=1000,1,0) -> 
A188: К3 | B188: 2800 | C188: 2000 | D188: 4800 | E188: до 2800х2000 | F188: компл. | G188: 8450 | J188: =IF(AND(2500<H188,H188<=2800),1,G189) ->  | K188: =IF(AND(1000<I188,I188<=2000),1,0) -> 
J189: =IF(H188>B188,1,0) ->  | K189: =IF(I187<=1000,1,0) ->  | L189: =IF(AND(J189=1,K189=1),G187,0) -> 
J190: =IF(H188>B188,1,0) ->  | K190: =IF(AND(1000<I188,I188<=2000),1,0) ->  | L190: =IF(AND(J190=1,K190=1),G188,0) -> 
A192: 1 | B192: =IF(A179=A192,L192,0) ->  | L192: =SUM(L183:L191) -> 
E195: Размер по проему: (высота х ширина) | F195: Ед.изм. | G195: Цена/руб.
A196: К4 | B196: 2150 | C196: 1000 | D196: =B196+C196 -> 3150 | E196: до 2150х1000 | F196: компл. | G196: 4725 | H196: =B179 ->  | I196: =C179 ->  | J196: =IF(H196<=B196,1,0) ->  | K196: =IF(I196<=1000,1,0) ->  | L196: =IF(AND(J196=1,K196=1),G196,0) -> 
A197: К4 | B197: 2150 | C197: 2000 | D197: 4150 | E197: до 2150х2000 | F197: компл. | G197: 5910 | H197: =H196 ->  | J197: =IF(H197<=B197,1,0) ->  | K197: =IF(AND(1000<I197,I197<=2000),1,0) -> 
A198: К4 | B198: 2500 | C198: 1000 | D198: 3500 | E198: до 2500х1000 | F198: компл. | G198: 5910 | J198: =IF(AND(2150<H198,H198<=2500),1,0) ->  | K198: =IF(I198<=1000,1,0) -> 
A199: К4 | B199: 2500 | C199: 2000 | D199: 4500 | E199: до 2500х2000 | F199: компл. | G199: 7090 | J199: =IF(AND(2150<H199,H199<=2500),1,0) ->  | K199: =IF(AND(1000<I199,I199<=2000),1,0) -> 
A200: К4 | B200: 2800 | C200: 1000 | D200: 3800 | E200: до 2800х1000 | F200: компл. | G200: 7090 | J200: =IF(AND(2500<H200,H200<=2800),1,0) ->  | K200: =IF(I200<=1000,1,0) -> 
A201: К4 | B201: 2800 | C201: 2000 | D201: 4800 | E201: до 2800х2000 | F201: компл. | G201: 8265 | J201: =IF(AND(2500<H201,H201<=2800),1,G202) ->  | K201: =IF(AND(1000<I201,I201<=2000),1,0) -> 
J202: =IF(H201>B201,1,0) ->  | K202: =IF(I200<=1000,1,0) ->  | L202: =IF(AND(J202=1,K202=1),G200,0) -> 
J203: =IF(H201>B201,1,0) ->  | K203: =IF(AND(1000<I201,I201<=2000),1,0) ->  | L203: =IF(AND(J203=1,K203=1),G201,0) -> 
A205: 2 | B205: =IF(A179=A205,L205,0) ->  | L205: =SUM(L196:L204) -> 
A207: К3 | B207: 2500 | C207: 1000 | D207: 50 | E207: до 2500х1000 | F207: компл. | G207: 1500 | H207: =B179 ->  | I207: =C179 ->  | J207: =IF(H207<=B207,1,0) ->  | K207: =IF(I207<=1000,1,0) ->  | L207: =IF(AND(J207=1,K207=1),G207,0) -> 
A208: К3 | B208: 2500 | C208: 2000 | D208: 50 | E208: до 2500х2000 | F208: компл. | G208: 1790 | H208: =H207 ->  | J208: =IF(H208<=B208,1,0) ->  | K208: =IF(AND(1000<I208,I208<=2000),1,0) ->  | L208: =IF(AND(J208=1,K208=1),G208,0) -> 
A209: К3 | B209: 2800 | C209: 1000 | D209: 50 | E209: до 2800х1000 | F209: компл. | G209: 1790 | J209: =IF(AND(2500<H209,H209<=2800),1,0) ->  | K209: =IF(I209<=1000,1,0) ->  | L209: =IF(AND(J209=1,K209=1),G209,0) -> 
A210: К3 | B210: 2800 | C210: 2000 | D210: 50 | E210: до 2800х2000 | F210: компл. | G210: 2140 | J210: =IF(AND(2500<H210,H210<=2800),1,0) ->  | K210: =IF(AND(1000<I210,I210<=2000),1,0) ->  | L210: =IF(AND(J210=1,K210=1),G210,0) -> 
J211: =IF(H210>B210,1,0) ->  | K211: =IF(I209<=1000,1,0) ->  | L211: =IF(AND(J211=1,K211=1),G210,0) -> 
J212: =IF(H210>B210,1,0) ->  | K212: =IF(AND(1000<I210,I210<=2000),1,0) ->  | L212: =IF(AND(J212=1,K212=1),G210,0) -> 
A214: 1 | B214: =IF(A179=A214,L214,0) ->  | L214: =SUM(L207:L213) -> 
A216: К3 | B216: 2500 | C216: 1000 | D216: 80 | E216: до 2500х1000 | F216: компл. | G216: 1790 | H216: =B179 ->  | I216: =C179 ->  | J216: =IF(H216<=B216,1,0) ->  | K216: =IF(I216<=1000,1,0) ->  | L216: =IF(AND(J216=1,K216=1),G216,0) -> 
A217: К3 | B217: 2500 | C217: 2000 | D217: 80 | E217: до 2500х2000 | F217: компл. | G217: 2140 | H217: =H216 ->  | J217: =IF(H217<=B217,1,0) ->  | K217: =IF(AND(1000<I217,I217<=2000),1,0) ->  | L217: =IF(AND(J217=1,K217=1),G217,0) -> 
A218: К3 | B218: 2800 | C218: 1000 | D218: 80 | E218: до 2800х1000 | F218: компл. | G218: 2100 | J218: =IF(AND(2500<H218,H218<=2800),1,0) ->  | K218: =IF(I218<=1000,1,0) ->  | L218: =IF(AND(J218=1,K218=1),G218,0) -> 
A219: К3 | B219: 2800 | C219: 2000 | D219: 80 | E219: до 2800х2000 | F219: компл. | G219: 2520 | J219: =IF(AND(2500<H219,H219<=2800),1,0) ->  | K219: =IF(AND(1000<I219,I219<=2000),1,0) ->  | L219: =IF(AND(J219=1,K219=1),G219,0) -> 
A220: К3 | J220: =IF(H219>B219,1,0) ->  | K220: =IF(I218<=1000,1,0) ->  | L220: =IF(AND(J220=1,K220=1),G219,0) -> 
J221: =IF(H219>B219,1,0) ->  | K221: =IF(AND(1000<I219,I219<=2000),1,0) ->  | L221: =IF(AND(J221=1,K221=1),G219,0) -> 
A223: 1 | B223: =IF(A179=A223,L223,0) ->  | L223: =SUM(L216:L222) -> 
A226: Толщина дверного проема | B226: =D179 -> 
A227: добор 80 мм | B227: =INT((B226-120)/80) -> 
A228: добор 50 мм | B228: 0
A229: Остаток | B229: =(B226-120)-B227*80 -> 
A231: Необходимое количество
A232: добор 80 мм | B232: =IF(B229>50,B227+1,B227) -> 
A233: добор 50 мм | B233: =IF(AND(1<B229,B229<=50),B228+1,B228) -> 
A235: 1 | B235: =IF(A179=A235,L235,0) ->  | L235: =B232 -> 
A236: 1 | B236: =IF(A179=A236,L236,0) ->  | L236: =B233 -> 
A238: =Лист2!#REF! ->  | B238: =Лист2!#REF! ->  | C238: =Лист2!#REF! ->  | D238: =Лист2!#REF! ->  | E238: =B251+B264 ->  | F238: 1 | G238: =F238*E238 ->  | H238: =B295 ->  | I238: =B294 ->  | J238: =B273 ->  | K238: =B282 ->  | L238: =H238*J238+I238*K238 ->  | M238: =G238+L238 -> 
E241: Размер по проему: (высота х ширина) | F241: Ед.изм. | G241: Цена/руб.
A242: К3 | B242: 2150 | C242: 1000 | D242: =B242+C242 -> 3150 | E242: до 2150х1000 | F242: компл. | G242: 4830 | H242: =B238 ->  | I242: =C238 ->  | J242: =IF(H242<=B242,1,0) ->  | K242: =IF(I242<=1000,1,0) ->  | L242: =IF(AND(J242=1,K242=1),G242,0) -> 
A243: К3 | B243: 2150 | C243: 2000 | D243: 4150 | E243: до 2150х2000 | F243: компл. | G243: 6040 | H243: =H242 ->  | J243: =IF(H243<=B243,1,0) ->  | K243: =IF(AND(1000<I243,I243<=2000),1,0) -> 
A244: К3 | B244: 2500 | C244: 1000 | D244: 3500 | E244: до 2500х1000 | F244: компл. | G244: 6040 | J244: =IF(AND(2150<H244,H244<=2500),1,0) ->  | K244: =IF(I244<=1000,1,0) -> 
A245: К3 | B245: 2500 | C245: 2000 | D245: 4500 | E245: до 2500х2000 | F245: компл. | G245: 7245 | J245: =IF(AND(2150<H245,H245<=2500),1,0) ->  | K245: =IF(AND(1000<I245,I245<=2000),1,0) -> 
A246: К3 | B246: 2800 | C246: 1000 | D246: 3800 | E246: до 2800х1000 | F246: компл. | G246: 7245 | J246: =IF(AND(2500<H246,H246<=2800),1,0) ->  | K246: =IF(I246<=1000,1,0) -> 
A247: К3 | B247: 2800 | C247: 2000 | D247: 4800 | E247: до 2800х2000 | F247: компл. | G247: 8450 | J247: =IF(AND(2500<H247,H247<=2800),1,G248) ->  | K247: =IF(AND(1000<I247,I247<=2000),1,0) -> 
J248: =IF(H247>B247,1,0) ->  | K248: =IF(I246<=1000,1,0) ->  | L248: =IF(AND(J248=1,K248=1),G246,0) -> 
J249: =IF(H247>B247,1,0) ->  | K249: =IF(AND(1000<I247,I247<=2000),1,0) ->  | L249: =IF(AND(J249=1,K249=1),G247,0) -> 
A251: 1 | B251: =IF(A238=A251,L251,0) ->  | L251: =SUM(L242:L250) -> 
E254: Размер по проему: (высота х ширина) | F254: Ед.изм. | G254: Цена/руб.
A255: К4 | B255: 2150 | C255: 1000 | D255: =B255+C255 -> 3150 | E255: до 2150х1000 | F255: компл. | G255: 4725 | H255: =B238 ->  | I255: =C238 ->  | J255: =IF(H255<=B255,1,0) ->  | K255: =IF(I255<=1000,1,0) ->  | L255: =IF(AND(J255=1,K255=1),G255,0) -> 
A256: К4 | B256: 2150 | C256: 2000 | D256: 4150 | E256: до 2150х2000 | F256: компл. | G256: 5910 | H256: =H255 ->  | J256: =IF(H256<=B256,1,0) ->  | K256: =IF(AND(1000<I256,I256<=2000),1,0) -> 
A257: К4 | B257: 2500 | C257: 1000 | D257: 3500 | E257: до 2500х1000 | F257: компл. | G257: 5910 | J257: =IF(AND(2150<H257,H257<=2500),1,0) ->  | K257: =IF(I257<=1000,1,0) -> 
A258: К4 | B258: 2500 | C258: 2000 | D258: 4500 | E258: до 2500х2000 | F258: компл. | G258: 7090 | J258: =IF(AND(2150<H258,H258<=2500),1,0) ->  | K258: =IF(AND(1000<I258,I258<=2000),1,0) -> 
A259: К4 | B259: 2800 | C259: 1000 | D259: 3800 | E259: до 2800х1000 | F259: компл. | G259: 7090 | J259: =IF(AND(2500<H259,H259<=2800),1,0) ->  | K259: =IF(I259<=1000,1,0) -> 
A260: К4 | B260: 2800 | C260: 2000 | D260: 4800 | E260: до 2800х2000 | F260: компл. | G260: 8265 | J260: =IF(AND(2500<H260,H260<=2800),1,G261) ->  | K260: =IF(AND(1000<I260,I260<=2000),1,0) -> 
J261: =IF(H260>B260,1,0) ->  | K261: =IF(I259<=1000,1,0) ->  | L261: =IF(AND(J261=1,K261=1),G259,0) -> 
J262: =IF(H260>B260,1,0) ->  | K262: =IF(AND(1000<I260,I260<=2000),1,0) ->  | L262: =IF(AND(J262=1,K262=1),G260,0) -> 
A264: 2 | B264: =IF(A238=A264,L264,0) ->  | L264: =SUM(L255:L263) -> 
A266: К3 | B266: 2500 | C266: 1000 | D266: 50 | E266: до 2500х1000 | F266: компл. | G266: 1500 | H266: =B238 ->  | I266: =C238 ->  | J266: =IF(H266<=B266,1,0) ->  | K266: =IF(I266<=1000,1,0) ->  | L266: =IF(AND(J266=1,K266=1),G266,0) -> 
A267: К3 | B267: 2500 | C267: 2000 | D267: 50 | E267: до 2500х2000 | F267: компл. | G267: 1790 | H267: =H266 ->  | J267: =IF(H267<=B267,1,0) ->  | K267: =IF(AND(1000<I267,I267<=2000),1,0) ->  | L267: =IF(AND(J267=1,K267=1),G267,0) -> 
... 66 more rows
